fUST/lending_fUST_20250120
["ID","MTS","AMOUNT","RATE_DAILY","PERIOD"]
[349578896,1737307835853,-1386.61,0.00022328,3]
[349578897,1737307835863,-500.0,0.00022328,3]
[349578898,1737307835872,-2447.19,0.00022328,3]
[349578899,1737307835882,-3231.23,0.00022328,3]
[349578900,1737307835891,-5654.29,0.00022328,3]
[349578901,1737307835901,-500.0,0.00022328,3]
[349578902,1737307835910,-1108.61,0.00022328,3]
[349578903,1737307835920,-500.0,0.00022328,3]
[349578904,1737307835930,-221.27886124,0.00022328,3]
[349578905,1737307835940,-773.93,0.00022328,3]
[349578906,1737307835949,-500.0,0.00022328,3]
[349578907,1737307835959,-500.0,0.00022328,3]
[349578908,1737307835969,-500.0,0.00022328,3]
[349578909,1737307835978,-698.05,0.00022328,3]
[349578910,1737307835990,-500.0,0.00022328,3]
[349578911,1737307835999,-3103.4,0.00022328,3]
[349578912,1737307836009,-902.55,0.00022328,3]
[349578913,1737307836018,-150.07739711,0.00022328,3]
[349578914,1737307836027,-500.0,0.00022328,3]
[349578915,1737307836037,-500.0,0.00022328,3]
[349578916,1737307836046,-789.45,0.00022328,3]
[349578917,1737307836057,-862.88,0.00022328,3]
[349578918,1737307836067,-473.6670813,0.00022328,3]
[349578919,1737307836077,-396.91881112,0.00022328,3]
[349578920,1737307836086,-500.0,0.00022328,3]
[349578921,1737307836096,-1452.67,0.00022328,3]
[349578922,1737307836105,-10392.09,0.00022328,3]
[349578923,1737307836115,-500.0,0.00022328,3]
[349578924,1737307836232,-500.0,0.00022328,3]
[349578925,1737307836242,-500.0,0.00022328,3]
[349578926,1737307836252,-500.0,0.00022328,3]
[349578927,1737307836262,-500.0,0.00022328,3]
[349578928,1737307836273,-1199.9,0.00022328,3]
[349578929,1737307836283,-500.0,0.00022328,3]
[349578930,1737307836294,-500.0,0.00022328,3]
[349578931,1737307836304,-500.0,0.00022356,2]
[349578932,1737307836314,-500.0,0.00022356,2]
[349578933,1737307836325,-1560.54,0.000224,2]
[349578934,1737307836336,-4175.55366888,0.00022417,3]
[349578935,1737307836347,-500.0,0.00022465,3]
[349578936,1737307836358,-500.0,0.00022465,3]
[349578937,1737307836371,-500.0,0.00022465,3]
[349578938,1737307836381,-500.0,0.00022465,3]
[349578939,1737307836392,-500.0,0.00022465,3]
[349578940,1737307836409,-500.0,0.00022465,2]
[349578941,1737307836422,-500.0,0.00022465,3]
[349578942,1737307836433,-500.0,0.00022465,3]
[349578943,1737307836445,-500.0,0.00022465,3]
[349578944,1737307836456,-500.0,0.00022465,3]
[349578945,1737307836467,-500.0,0.00022465,3]
[349578946,1737307836478,-1386.61,0.00022465,3]
[349578947,1737307836488,-597.36232765,0.00022465,3]
[349578948,1737307836499,-2447.19,0.00022465,3]
[349578949,1737307836512,-3231.23,0.00022465,3]
[349578950,1737307836524,-5654.29,0.00022465,3]
[349578951,1737307836534,-500.0,0.00022465,3]
[349578952,1737307836545,-1108.61,0.00022465,3]
[349578953,1737307836556,-500.0,0.00022465,3]
[349578954,1737307836567,-773.93,0.00022465,3]
[349578955,1737307836578,-500.0,0.00022465,3]
[349578956,1737307836589,-500.0,0.00022465,3]
[349578957,1737307836599,-500.0,0.00022465,3]
[349578958,1737307836611,-698.05,0.00022465,3]
[349578959,1737307836622,-500.0,0.00022465,3]
[349578960,1737307836634,-3103.4,0.00022465,3]
[349578961,1737307836646,-902.55,0.00022465,3]
[349578962,1737307836657,-500.0,0.00022465,3]
[349578963,1737307836668,-500.0,0.00022465,3]
[349578964,1737307836679,-789.45,0.00022465,3]
[349578965,1737307836691,-862.88,0.00022465,3]
[349578966,1737307836703,-500.0,0.00022465,3]
[349578967,1737307836715,-1452.67,0.00022465,3]
[349578968,1737307836726,-10392.09,0.00022465,3]
[349578969,1737307836736,-500.0,0.00022465,3]
[349578970,1737307836747,-500.0,0.00022465,3]
[349578971,1737307836758,-500.0,0.00022465,3]
[349578972,1737307836770,-500.0,0.00022465,3]
[349578973,1737307836780,-500.0,0.00022465,3]
[349578974,1737307836791,-1199.9,0.00022465,3]
[349578975,1737307836801,-500.0,0.00022465,3]
[349578976,1737307836812,-500.0,0.00022465,3]
[349578977,1737307836822,-551.07906972,0.00022521,2]
[349578978,1737307836833,-4175.55366888,0.00022521,3]
[349578979,1737307836843,-536.0,0.00022564,2]
[349578980,1737307836854,-2063.0,0.00022564,2]
[349578981,1737307836866,-2308.0,0.00022564,2]
[349578982,1737307836877,-395.0,0.00022564,2]
[349578983,1737307836888,-500.0,0.00022602,3]
[349578984,1737307836899,-500.0,0.00022602,3]
[349578985,1737307836909,-500.0,0.00022602,3]
[349578986,1737307836920,-500.0,0.00022602,3]
[349578987,1737307836930,-500.0,0.00022602,3]
[349578988,1737307836940,-500.0,0.00022602,2]
[349578989,1737307836951,-500.0,0.00022602,3]
[349578990,1737307836961,-500.0,0.00022602,3]
[349578991,1737307836972,-500.0,0.00022602,3]
[349578992,1737307836982,-500.0,0.00022602,3]
[349578993,1737307837001,-500.0,0.00022602,3]
[349578994,1737307837015,-1386.61,0.00022602,3]
[349578995,1737307837025,-2447.19,0.00022602,3]
[349578996,1737307837035,-3231.23,0.00022602,3]
[349578997,1737307837046,-5654.29,0.00022602,3]
[349578998,1737307837056,-500.0,0.00022602,3]
[349578999,1737307837066,-1108.61,0.00022602,3]
[349579000,1737307837076,-500.0,0.00022602,3]
[349579001,1737307837086,-773.93,0.00022602,3]
[349579002,1737307837096,-500.0,0.00022602,3]
[349579003,1737307837106,-243.64217754,0.00022602,3]
[349579004,1737307837184,-256.35782246,0.00022602,3]
[349579005,1737307837193,-278.94403673,0.00022602,3]
[349579006,1737307837203,-416.10708635,0.00022602,3]
[349579007,1737307837230,-290.69263301,0.00022053,2]
[349579008,1737307837240,-541.76652006,0.00022053,2]
[349579009,1737307837249,-281.94291365,0.00022602,3]
[349579010,1737307837259,-500.0,0.00022602,3]
[349579011,1737307837269,-128.81831033,0.00022602,3]
[349579036,1737307838741,-178.15541033,0.00021817,2]
[349579039,1737307838752,-500.0,0.00021917,3]
[349579041,1737307838763,-500.0,0.00022054,3]
[349579043,1737307838774,-2974.58168967,0.00022602,3]
[349579045,1737307838784,-902.55,0.00022602,3]
[349579047,1737307838794,-500.0,0.00022602,3]
[349579049,1737307838804,-500.0,0.00022602,3]
[349579051,1737307838814,-789.45,0.00022602,3]
[349579053,1737307838823,-757.61810771,0.00022602,3]
[349579293,1737307841283,-404.12903649,0.00022191,3]
[349579548,1737307843868,-95.87096351,0.00022191,3]
[349579549,1737307843878,-500.0,0.00022328,3]
[349579550,1737307843888,-500.0,0.00022465,3]
[349579551,1737307843899,-105.26189229,0.00022602,3]
[349579553,1737307843908,-500.0,0.00022602,3]
[349579555,1737307843918,-1056.73114181,0.00022602,3]
[349579557,1737307843930,-395.93885819,0.00022602,3]
[349579559,1737307843939,-10392.09,0.00022602,3]
[349579561,1737307843949,-500.0,0.00022602,3]
[349579563,1737307843959,-500.0,0.00022602,3]
[349579565,1737307843969,-500.0,0.00022602,3]
[349579567,1737307843979,-500.0,0.00022602,3]
[349579570,1737307843989,-500.0,0.00022602,3]
[349579572,1737307843999,-1199.9,0.00022602,3]
[349579574,1737307844010,-500.0,0.00022602,3]
[349579576,1737307844025,-500.0,0.00022602,3]
[349579578,1737307844036,-500.0,0.00022602,3]
[349579580,1737307844046,-500.0,0.00022635,2]
[349579582,1737307844055,-584.05806523,0.00022635,2]
[349579584,1737307844065,-500.0,0.00022635,2]
[349579586,1737307844075,-500.0,0.00022738,2]
[349579588,1737307844085,-208.35091222,0.00022738,2]
[349579590,1737307844095,-500.0,0.00022738,2]
[349579592,1737307844105,-367.56608623,0.00022738,2]
[349579594,1737307844114,-500.0,0.00022739,3]
[349579596,1737307844124,-500.0,0.00022739,3]
[349579598,1737307844134,-500.0,0.00022739,3]
[349579600,1737307844144,-500.0,0.00022739,3]
[349579602,1737307844154,-500.0,0.00022739,2]
[349579604,1737307844163,-500.0,0.00022739,3]
[349579606,1737307844173,-500.0,0.00022739,3]
[349579608,1737307844183,-500.0,0.00022739,3]
[349579610,1737307844193,-500.0,0.00022739,3]
[349579612,1737307844203,-1386.61,0.00022739,3]
[349579614,1737307844213,-2447.19,0.00022739,3]
[349579616,1737307844223,-3231.23,0.00022739,3]
[349579618,1737307844233,-5654.29,0.00022739,3]
[349579620,1737307844243,-500.0,0.00022739,3]
[349579622,1737307844254,-1108.61,0.00022739,3]
[349579624,1737307844267,-615.71,0.00022739,3]
[349579626,1737307844282,-773.93,0.00022739,3]
[349579628,1737307844294,-500.0,0.00022739,3]
[349579630,1737307844304,-500.0,0.00022739,3]
[349579631,1737307844314,-698.05,0.00022739,3]
[349579634,1737307844325,-500.0,0.00022739,3]
[349579636,1737307844336,-3103.4,0.00022739,3]
[349579637,1737307844346,-902.55,0.00022739,3]
[349579640,1737307844358,-603.67,0.00022739,3]
[349579642,1737307844370,-500.0,0.00022739,3]
[349579644,1737307844380,-862.88,0.00022739,3]
[349579646,1737307844391,-789.45,0.00022739,3]
[349579648,1737307844402,-500.0,0.00022739,3]
[349579650,1737307844416,-1452.67,0.00022739,3]
[349579652,1737307844425,-10392.09,0.00022739,3]
[349579654,1737307844434,-500.0,0.00022739,3]
[349579656,1737307844444,-500.0,0.00022739,3]
[349579658,1737307844455,-500.0,0.00022739,3]
[349579660,1737307844465,-500.0,0.00022739,3]
[349579662,1737307844477,-500.0,0.00022739,3]
[349579664,1737307844487,-1199.9,0.00022739,3]
[349579666,1737307844496,-500.0,0.00022739,3]
[349579668,1737307844506,-500.0,0.00022739,3]
[349579670,1737307844516,-500.0,0.00022739,3]
[349579672,1737307844531,-3598.5118307,0.0002275,2]
[349579674,1737307844541,-500.0,0.00022876,3]
[349579676,1737307844550,-500.0,0.00022876,3]
[349579678,1737307844559,-223.16,0.00022876,3]
[349579680,1737307844569,-500.0,0.00022876,2]
[349579682,1737307844579,-500.0,0.00022876,3]
[349579684,1737307844588,-500.0,0.00022876,3]
[349579686,1737307844598,-500.0,0.00022876,3]
[349579688,1737307844608,-1386.61,0.00022876,3]
[349579690,1737307844617,-2447.19,0.00022876,3]
[349579692,1737307844627,-3231.23,0.00022876,3]
[349579694,1737307844637,-5654.29,0.00022876,3]
[349579696,1737307844646,-500.0,0.00022876,3]
[349579698,1737307844656,-1108.61,0.00022876,3]
[349579700,1737307844665,-773.93,0.00022876,3]
[349579702,1737307844676,-500.0,0.00022876,3]
[349579704,1737307844685,-500.0,0.00022876,3]
[349579706,1737307844695,-698.05,0.00022876,3]
[349579708,1737307844704,-500.0,0.00022876,3]
[349579710,1737307844713,-3103.4,0.00022876,3]
[349579712,1737307844723,-902.55,0.00022876,3]
[349579714,1737307844733,-532.21,0.00022876,3]
[349579716,1737307844742,-862.88,0.00022876,3]
[349579718,1737307844751,-789.45,0.00022876,3]
[349579720,1737307844761,-500.0,0.00022876,3]
[349579722,1737307844771,-1452.67,0.00022876,3]
[349579724,1737307844781,-10392.09,0.00022876,3]
[349579726,1737307844790,-524.79,0.00022876,3]
[349579728,1737307844799,-500.0,0.00022876,3]
[349579730,1737307844809,-500.0,0.00022876,3]
[349579732,1737307844818,-500.0,0.00022876,3]
[349579734,1737307844827,-500.0,0.00022876,3]
[349579736,1737307844837,-1199.9,0.00022876,3]
[349579738,1737307844846,-500.0,0.00022876,3]
[349579750,1737307844943,-500.0,0.00022876,3]
[349579752,1737307844953,-500.0,0.00022876,3]
[349579754,1737307844963,-1000.0,0.00022904,2]
[349579756,1737307844972,-1005.03386063,0.00022904,2]
[349579758,1737307844981,-334.501,0.0002296,2]
[349579760,1737307844991,-7438.69753278,0.00023,2]
[349579762,1737307845000,-7438.69753278,0.00023,3]
[349579764,1737307845010,-500.0,0.00023013,3]
[349579766,1737307845021,-500.0,0.00023013,3]
[349579768,1737307845030,-500.0,0.00023013,2]
[349579770,1737307845039,-500.0,0.00023013,3]
[349579772,1737307845048,-500.0,0.00023013,3]
[349579774,1737307845057,-500.0,0.00023013,3]
[349579776,1737307845066,-1386.61,0.00023013,3]
[349579778,1737307845076,-2447.19,0.00023013,3]
[349579780,1737307845085,-3231.23,0.00023013,3]
[349579782,1737307845095,-5654.29,0.00023013,3]
[349579784,1737307845106,-500.0,0.00023013,3]
[349579786,1737307845115,-1108.61,0.00023013,3]
[349579788,1737307845124,-773.93,0.00023013,3]
[349579791,1737307845134,-500.0,0.00023013,3]
[349579793,1737307845144,-500.0,0.00023013,3]
[349579795,1737307845153,-698.05,0.00023013,3]
[349579796,1737307845163,-500.0,0.00023013,3]
[349579799,1737307845172,-3103.4,0.00023013,3]
[349579801,1737307845182,-902.55,0.00023013,3]
[349579803,1737307845191,-862.88,0.00023013,3]
[349579805,1737307845200,-789.45,0.00023013,3]
[349579807,1737307845210,-500.0,0.00023013,3]
[349579809,1737307845220,-1452.67,0.00023013,3]
[349579811,1737307845230,-10392.09,0.00023013,3]
[349579813,1737307845239,-500.0,0.00023013,3]
[349579815,1737307845249,-500.0,0.00023013,3]
[349579817,1737307845258,-587.45,0.00023013,3]
[349579819,1737307845272,-237.03,0.00023013,3]
[349579821,1737307845283,-1199.9,0.00023013,3]
[349579823,1737307845292,-500.0,0.00023013,3]
[349579825,1737307845302,-500.0,0.00023013,3]
[349579827,1737307845312,-500.0,0.00023013,3]
[349579829,1737307845321,-500.0,0.00023086,2]
[349579831,1737307845332,-500.0,0.0002315,3]
[349579833,1737307845342,-500.0,0.0002315,3]
[349579835,1737307845352,-500.0,0.0002315,2]
[349579837,1737307845361,-390.27,0.0002315,3]
[349579839,1737307845370,-576.12,0.0002315,3]
[349579841,1737307845380,-500.0,0.0002315,3]
[349579843,1737307845389,-1386.61,0.0002315,3]
[349579845,1737307845399,-2447.19,0.0002315,3]
[349579847,1737307845411,-3231.23,0.0002315,3]
[349579849,1737307845420,-5654.29,0.0002315,3]
[349579851,1737307845432,-640.24,0.0002315,3]
[349579853,1737307845441,-1108.61,0.0002315,3]
[349579855,1737307845450,-773.93,0.0002315,3]
[349579857,1737307845460,-500.0,0.0002315,3]
[349579859,1737307845471,-500.0,0.0002315,3]
[349579861,1737307845480,-698.05,0.0002315,3]
[349579863,1737307845490,-500.0,0.0002315,3]
[349579865,1737307845500,-3103.4,0.0002315,3]
[349579867,1737307845510,-902.55,0.0002315,3]
[349579869,1737307845523,-862.88,0.0002315,3]
[349579871,1737307845533,-789.45,0.0002315,3]
[349579873,1737307845542,-500.0,0.0002315,3]
[349579875,1737307845553,-1452.67,0.0002315,3]
[349579877,1737307845563,-10392.09,0.0002315,3]
[349579879,1737307845572,-500.0,0.0002315,3]
[349579881,1737307845582,-500.0,0.0002315,3]
[349579883,1737307845592,-1199.9,0.0002315,3]
[349579885,1737307845601,-500.0,0.0002315,3]
[349579887,1737307845610,-500.0,0.0002315,3]
[349579889,1737307845620,-500.0,0.0002315,3]
[349579891,1737307845630,-519.90558887,0.00023173,2]
[349579893,1737307845639,-500.0,0.00023183,2]
[349579895,1737307845649,-649.99937336,0.00023206,2]
[349579897,1737307845659,-500.0,0.00023287,3]
[349579899,1737307845669,-500.0,0.00023287,3]
[349579901,1737307845679,-500.0,0.00023287,2]
[349579904,1737307845689,-500.0,0.00023287,3]
[349579906,1737307845698,-1386.61,0.00023287,3]
[349579908,1737307845707,-2447.19,0.00023287,3]
[349579910,1737307845717,-3231.23,0.00023287,3]
[349579912,1737307845728,-5654.29,0.00023287,3]
[349579914,1737307845739,-1108.61,0.00023287,3]
[349579916,1737307845749,-773.93,0.00023287,3]
[349579918,1737307845759,-318.18,0.00023287,3]
[349579919,1737307845772,-500.0,0.00023287,3]
[349579922,1737307845783,-698.05,0.00023287,3]
[349579924,1737307845793,-500.0,0.00023287,3]
[349579926,1737307845803,-3103.4,0.00023287,3]
[349579927,1737307845812,-902.55,0.00023287,3]
[349579929,1737307845821,-862.88,0.00023287,3]
[349579931,1737307845831,-789.45,0.00023287,3]
[349579933,1737307845840,-500.0,0.00023287,3]
[349579935,1737307845851,-1452.67,0.00023287,3]
[349579937,1737307845863,-10392.09,0.00023287,3]
[349579939,1737307845876,-500.0,0.00023287,3]
[349579941,1737307845888,-500.0,0.00023287,3]
[349579943,1737307845899,-1199.9,0.00023287,3]
[349579945,1737307845908,-434.17,0.00023287,3]
[349579947,1737307845918,-500.0,0.00023287,3]
[349579949,1737307845927,-234.97224119,0.00023287,3]
[349579951,1737307845936,-540.95474537,0.00023369,4]
[349579953,1737307845945,-395.96,0.00023424,3]
[349579955,1737307845955,-500.0,0.00023424,3]
[349579957,1737307845964,-500.0,0.00023424,2]
[349579959,1737307845974,-500.0,0.00023424,3]
[349579961,1737307845983,-1386.61,0.00023424,3]
[349579963,1737307845993,-2447.19,0.00023424,3]
[349579965,1737307846003,-3231.23,0.00023424,3]
[349579967,1737307846012,-5654.29,0.00023424,3]
[349579969,1737307846024,-1108.61,0.00023424,3]
[349579971,1737307846033,-773.93,0.00023424,3]
[349579973,1737307846042,-500.0,0.00023424,3]
[349579975,1737307846051,-698.05,0.00023424,3]
[349579977,1737307846061,-388.89,0.00023424,3]
[349579979,1737307846070,-3103.4,0.00023424,3]
[349579981,1737307846079,-902.55,0.00023424,3]
[349579983,1737307846088,-862.88,0.00023424,3]
[349579985,1737307846098,-789.45,0.00023424,3]
[349579987,1737307846107,-500.0,0.00023424,3]
[349579989,1737307846119,-1452.67,0.00023424,3]
[349579991,1737307846129,-10392.09,0.00023424,3]
[349579993,1737307846138,-500.0,0.00023424,3]
[349579995,1737307846147,-243.78,0.00023424,3]
[349579997,1737307846157,-1199.9,0.00023424,3]
[349579999,1737307846166,-500.0,0.00023424,3]
[349580002,1737307846175,-8811.87,0.000235,14]
[349580004,1737307846185,-619.53074028,0.000235,2]
[349580006,1737307846194,-16697.18832989,0.000235,2]
[349580008,1737307846203,-1346.57127439,0.00023556,3]
[349580010,1737307846212,-500.0,0.00023561,3]
[349580012,1737307846222,-500.0,0.00023561,2]
[349580014,1737307846231,-500.0,0.00023561,3]
[349580016,1737307846240,-1386.61,0.00023561,3]
[349580018,1737307846249,-2447.19,0.00023561,3]
[349580020,1737307846259,-3231.23,0.00023561,3]
[349580022,1737307846268,-5654.29,0.00023561,3]
[349580024,1737307846280,-1108.61,0.00023561,3]
[349580026,1737307846289,-773.93,0.00023561,3]
[349580028,1737307846298,-500.0,0.00023561,3]
[349580030,1737307846307,-698.05,0.00023561,3]
[349580032,1737307846317,-3103.4,0.00023561,3]
[349580034,1737307846326,-902.55,0.00023561,3]
[349580037,1737307846335,-862.88,0.00023561,3]
[349580039,1737307846344,-789.45,0.00023561,3]
[349580042,1737307846354,-471.85,0.00023561,3]
[349580044,1737307846364,-1452.67,0.00023561,3]
[349580046,1737307846373,-10392.09,0.00023561,3]
[349580048,1737307846383,-193.25,0.00023561,3]
[349580050,1737307846393,-1199.9,0.00023561,3]
[349580052,1737307846408,-500.0,0.00023561,3]
[349580055,1737307846422,-500.0,0.0002357,2]
[349580057,1737307846432,-1200.0,0.0002357,2]
[349580059,1737307846442,-151.0,0.0002357,2]
[349580061,1737307846454,-500.0,0.00023634,2]
[349580063,1737307846464,-1016.925508,0.0002367,2]
[349580065,1737307846474,-7783.68861727,0.00023674,2]
[349580067,1737307846483,-5000.0,0.00023674,2]
[349580069,1737307846493,-5000.0,0.00023674,2]
[349580071,1737307846503,-5000.0,0.00023674,2]
[349580073,1737307846514,-5000.0,0.00023674,2]
[349580075,1737307846526,-500.0,0.00023698,3]
[349580077,1737307846536,-500.0,0.00023698,2]
[349580079,1737307846546,-500.0,0.00023698,3]
[349580081,1737307846556,-1386.61,0.00023698,3]
[349580083,1737307846566,-2447.19,0.00023698,3]
[349580085,1737307846576,-3231.23,0.00023698,3]
[349580087,1737307846587,-5654.29,0.00023698,3]
[349580089,1737307846597,-1108.61,0.00023698,3]
[349580091,1737307846606,-773.93,0.00023698,3]
[349580093,1737307846616,-500.0,0.00023698,3]
[349580095,1737307846626,-698.05,0.00023698,3]
[349580097,1737307846636,-3103.4,0.00023698,3]
[349580099,1737307846645,-902.55,0.00023698,3]
[349580101,1737307846655,-862.88,0.00023698,3]
[349580103,1737307846665,-789.45,0.00023698,3]
[349580105,1737307846675,-1452.67,0.00023698,3]
[349580107,1737307846685,-10392.09,0.00023698,3]
[349580109,1737307846695,-1199.9,0.00023698,3]
[349580111,1737307846704,-500.0,0.00023698,3]
[349580113,1737307846714,-420.0,0.00023817,2]
[349580115,1737307846724,-500.0,0.00023835,3]
[349580117,1737307846734,-233.86,0.00023835,2]
[349580119,1737307846744,-500.0,0.00023835,3]
[349580121,1737307846755,-1386.61,0.00023835,3]
[349580123,1737307846765,-2447.19,0.00023835,3]
[349580125,1737307846776,-3231.23,0.00023835,3]
[349580127,1737307846786,-5654.29,0.00023835,3]
[349580129,1737307846796,-1108.61,0.00023835,3]
[349580131,1737307846806,-773.93,0.00023835,3]
[349580133,1737307846815,-500.0,0.00023835,3]
[349580135,1737307846825,-698.05,0.00023835,3]
[349580137,1737307846836,-3103.4,0.00023835,3]
[349580139,1737307846849,-902.55,0.00023835,3]
[349580141,1737307846859,-862.88,0.00023835,3]
[349580143,1737307846869,-789.45,0.00023835,3]
[349580145,1737307846879,-1452.67,0.00023835,3]
[349580147,1737307846889,-10392.09,0.00023835,3]
[349580149,1737307846899,-1199.9,0.00023835,3]
[349580151,1737307846908,-289.62629306,0.00023835,3]
[349580153,1737307846919,-1115.2189777,0.00023901,2]
[349580155,1737307846929,-1500.0,0.00023906,2]
[349580157,1737307846939,-22563.57221625,0.00023924,2]
[349580159,1737307846951,-515.88669177,0.00023972,3]
[349580161,1737307846961,-495.54,0.00023972,3]
[349580163,1737307846971,-1386.61,0.00023972,3]
[349580165,1737307846981,-2447.19,0.00023972,3]
[349580167,1737307846991,-3231.23,0.00023972,3]
[349580169,1737307847001,-5654.29,0.00023972,3]
[349580171,1737307847011,-1108.61,0.00023972,3]
[349580173,1737307847023,-773.93,0.00023972,3]
[349580175,1737307847032,-500.0,0.00023972,3]
[349580177,1737307847043,-698.05,0.00023972,3]
[349580179,1737307847055,-3103.4,0.00023972,3]
[349580181,1737307847065,-902.55,0.00023972,3]
[349580183,1737307847074,-862.88,0.00023972,3]
[349580185,1737307847084,-789.45,0.00023972,3]
[349580187,1737307847094,-1452.67,0.00023972,3]
[349580189,1737307847103,-10392.09,0.00023972,3]
[349580191,1737307847113,-1199.9,0.00023972,3]
[349580193,1737307847123,-160.0,0.00023987,3]
[349580195,1737307847133,-165.57608759,0.00023987,5]
[349580197,1737307847143,-3208.34,0.00024,14]
[349580199,1737307847152,-153.04,0.00024,31]
[349580201,1737307847162,-153.04,0.00024,31]
[349580203,1737307847172,-153.04,0.00024,31]
[349580205,1737307847182,-153.04,0.00024,31]
[349580207,1737307847191,-153.04,0.00024,31]
[349580209,1737307847200,-153.04,0.00024,31]
[349580211,1737307847210,-153.04,0.00024,31]
[349580213,1737307847219,-153.04,0.00024,31]
[349580215,1737307847228,-153.04,0.00024,31]
[349580217,1737307847238,-153.04,0.00024,31]
[349580219,1737307847248,-153.04,0.00024,31]
[349580221,1737307847258,-153.04,0.00024,31]
[349580223,1737307847267,-153.04,0.00024,31]
[349580235,1737307847278,-153.04,0.00024,31]
[349580237,1737307847391,-153.04,0.00024,31]
[349580239,1737307847401,-153.04,0.00024,31]
[349580241,1737307847411,-7438.69753278,0.00024,7]
[349580243,1737307847420,-13198.82512218,0.00024067,2]
[349580245,1737307847432,-178.15541032,0.00024067,2]
[349580247,1737307847441,-2000.0,0.000241,2]
[349580249,1737307847450,-2000.0,0.000241,2]
[349580251,1737307847459,-2000.0,0.000241,2]
[349580253,1737307847471,-188.0,0.000241,2]
[349580255,1737307847481,-1386.61,0.00024109,3]
[349580257,1737307847491,-2447.19,0.00024109,3]
[349580259,1737307847501,-3231.23,0.00024109,3]
[349580261,1737307847511,-5654.29,0.00024109,3]
[349580263,1737307847522,-1108.61,0.00024109,3]
[349580265,1737307847531,-773.93,0.00024109,3]
[349580267,1737307847540,-278.9,0.00024109,3]
[349580269,1737307847549,-698.05,0.00024109,3]
[349580271,1737307847559,-3103.4,0.00024109,3]
[349580273,1737307847568,-902.55,0.00024109,3]
[349580275,1737307847578,-862.88,0.00024109,3]
[349580277,1737307847587,-789.45,0.00024109,3]
[349580279,1737307847597,-1452.67,0.00024109,3]
[349580281,1737307847607,-10392.09,0.00024109,3]
[349580283,1737307847616,-1199.9,0.00024109,3]
[349580284,1737307847626,-27878.78839955,0.00024166,5]
[349580286,1737307847635,-1909.26706342,0.00024166,5]
[349580288,1737307847644,-1876369.074108,0.00024167,61]
[349580373,1737308052550,157.895627,0.00013973,2]
[349580385,1737308853035,461.68,0.00024,120]
[349580441,1737309035676,-168.484001,0.00020725,2]
[349580442,1737309035687,-300.0,0.00020742,2]
[349580444,1737309035698,-6244.74154204,0.00020743,2]
[349580446,1737309035739,-1788.03704033,0.00020743,2]
[349580447,1737309035802,-16867.22141763,0.00020743,2]
[349580448,1737309035813,-336.019323,0.00020941,2]
[349580449,1737309035824,-170.044,0.00020992,2]
[349580450,1737309035834,-250.0,0.00020992,2]
[349580451,1737309035844,-5230.1878222,0.00021387,2]
[349580452,1737309035855,-157.895627,0.00021661,2]
[349580453,1737309035866,-152.0,0.00021743,2]
[349580455,1737309035877,-287.0529592,0.000218,2]